bitfinex-derivatives/quotes_ETHF0:USTF0_20260226
["timestamp","ask_amount","ask_price","bid_price","bid_amount"]
[1772116340932,1.08431562,2067.5,2066.4,1.13208517]
[1772116341131,7.03453562,2067.1,2066.4,0.00395914]
[1772116341331,1.07690942,2066.7,2065.1,1.12812603]
[1772116341732,1.07690942,2066.3,2065.2,5.20497453]
[1772116341936,1.07690942,2066.1,2065.0,1.12812603]
[1772116342237,1.08148452,2066.1,2065.0,1.13208435]
[1772116342737,0.0045751,2066.1,2065.0,1.13208435]
[1772116343436,1.06824092,2065.9,2065.0,0.00395832]
[1772116343731,1.06824092,2065.9,2065.0,1.13208435]
[1772116344326,1.06326947,2065.7,2065.0,0.00395832]
[1772116344731,7.80226947,2066.0,2065.0,1.13208435]
[1772116345126,1.05837725,2065.9,2065.0,1.13208435]
[1772116345327,1.06105153,2065.5,2064.0,1.12812603]
[1772116345532,1.06105153,2065.4,2064.0,1.12812603]
[1772116345731,1.06105153,2065.2,2064.0,1.12812603]
[1772116346432,1.06105153,2065.2,2064.0,1.13407589]
[1772116346829,7.80155683,2065.7,2064.0,1.13407589]
[1772116347240,1.05470955,2065.6,2064.0,1.13407589]
[1772116347440,1.29617393,2065.4,2064.0,1.13407589]
[1772116348032,1.04916165,2065.1,2064.0,0.00594986]
[1772116348230,7.80816165,2065.0,2064.0,1.07311374]
[1772116348637,1.04906914,2064.9,2064.0,1.07311374]
[1772116348937,1.04413939,2064.7,2064.0,0.00594986]
[1772116349240,1.03818953,2064.5,2062.9,1.06716388]
[1772116349433,0.24217,2064.6,2062.9,1.06716388]
[1772116349434,1.03099624,2064.3,2062.9,1.06716388]
[1772116350039,1.03529961,2064.3,2062.9,1.07094504]
[1772116350239,0.00430337,2064.3,2062.9,1.07094504]
[1772116350536,1.0260065,2065.7,2063.9,1.06716388]
[1772116350835,1.0260065,2065.6,2064.0,1.06716388]
[1772116351035,1.0260065,2065.6,2064.1,1.30938388]
[1772116351232,1.02149806,2065.9,2064.4,1.06716388]
[1772116351432,0.00408529,2065.9,2064.4,1.07239386]
[1772116351836,0.00408529,2065.9,2064.6,1.06716388]
[1772116352142,1.0270898,2065.8,2064.4,1.07239386]
[1772116352340,1.02699672,2065.6,2064.4,1.07239386]
[1772116352542,1.02699672,2065.4,2064.4,1.07239386]
[1772116352937,1.02206973,2065.2,2064.4,0.00522998]
[1772116353733,1.02206973,2065.2,2063.6,6.338]
[1772116353937,1.02206973,2065.2,2063.7,1.06716388]
[1772116354133,1.01815481,2065.0,2063.7,1.06716388]
[1772116354332,1.01805335,2064.6,2063.4,1.06716388]
[1772116354538,1.01805335,2064.2,2063.1,1.06716388]
[1772116354842,1.01805335,2064.1,2063.1,1.07202416]
[1772116355039,0.00450051,2064.2,2063.1,1.07202416]
[1772116355435,0.00450051,2064.2,2063.1,1.31435416]
[1772116355638,1.02297385,2064.9,2063.4,1.06716388]
[1772116355839,1.02297385,2064.9,2063.5,0.24229]
[1772116356033,1.02297385,2064.9,2063.6,1.06716388]
[1772116356743,1.02660263,2064.9,2063.6,1.06716388]
[1772116357140,0.00362878,2064.9,2063.8,1.06716388]
[1772116357445,0.11296711,2064.9,2063.8,1.0821841]
[1772116357739,0.11296711,2064.7,2063.8,1.0821841]
[1772116357942,0.10914504,2065.0,2063.8,1.0821841]
[1772116358150,40.8,2065.1,2063.8,1.0821841]
[1772116358339,0.00571315,2065.1,2063.8,1.0821841]
[1772116358535,0.00571315,2065.1,2063.8,1.3244441]
[1772116358736,0.00571315,2065.1,2064.0,1.32445298]
[1772116358940,0.24201,2066.0,2063.9,7.76913608]
[1772116358941,0.1764287,2066.5,2064.8,1.0793564]
[1772116359138,0.1764287,2066.6,2065.2,1.0793564]
[1772116359337,0.1739619,2066.9,2065.2,1.0793564]
[1772116359543,7.1838319,2067.2,2065.4,1.0805898]
[1772116359844,6.94584498,2067.2,2065.6,1.0805898]
[1772116360048,6.77188308,2067.2,2065.6,1.0805898]
[1772116360344,0.1697763,2066.9,2065.6,1.0805898]
[1772116360742,6.77188308,2067.2,2065.6,1.0805898]
[1772116360743,0.4116863,2066.8,2065.6,1.0805898]
[1772116360938,0.16528545,2066.5,2065.6,1.0805898]
[1772116361340,0.21939058,2066.8,2065.6,1.0805898]
[1772116361550,0.21939058,2067.1,2065.6,1.0805898]
[1772116362549,0.2146975,2066.9,2065.6,1.0805898]
[1772116362944,0.24191,2066.8,2065.6,1.0805898]
[1772116363147,0.24191,2066.8,2065.4,0.0043325]
[1772116363148,0.21018589,2066.1,2065.4,0.0043325]
[1772116363650,0.20801335,2065.9,2065.0,1.05368576]
[1772116363850,0.20801335,2065.9,2064.5,1.05477202]
[1772116364149,0.44552244,2065.8,2064.5,1.05477202]
[1772116364345,0.44534156,2065.6,2064.5,1.05477202]
[1772116364545,0.20329156,2065.4,2064.5,1.05851908]
[1772116364949,0.19911613,2065.2,2064.5,0.00374706]
[1772116365547,0.1945028,2065.0,2063.9,1.05718413]
[1772116365747,0.24211,2065.1,2063.9,1.05718413]
[1772116366545,0.24219,2064.4,2063.9,9.9e-07]
[1772116366745,0.18978245,2064.2,2063.3,1.05728541]
[1772116366947,7.62390355,2064.1,2062.4,1.05728541]
[1772116367253,0.18552664,2064.3,2062.5,1.0581838]
[1772116367553,7.62592539,2064.2,2062.5,1.0581838]
[1772116367845,7.62592539,2064.1,2062.5,1.06415294]
[1772116368047,0.18372987,2064.1,2062.5,1.06415294]
[1772116368245,0.00544251,2064.2,2062.5,1.28215738]
[1772116368447,0.00544251,2064.2,2062.7,1.05827557]
[1772116368948,0.00544251,2064.2,2062.9,1.05827557]
[1772116369250,0.00544251,2064.2,2063.1,1.05838626]
[1772116369844,6.745,2064.8,2063.2,1.05838626]
[1772116370043,0.17010142,2065.2,2063.6,1.05838626]
[1772116370245,7.45414581,2065.1,2063.6,1.05838626]
[1772116370442,10.86859966,2065.4,2063.8,1.05848634]
[1772116370646,7.62895586,2065.3,2064.0,1.05848634]
[1772116370843,7.62895586,2065.2,2064.0,1.05848634]
[1772116371053,7.62794996,2065.1,2064.0,1.06367997]
[1772116371248,7.62871279,2065.0,2064.0,1.06367997]
[1772116371455,0.00469802,2065.3,2064.2,1.06003105]
[1772116371644,3.96449824,2065.7,2064.4,1.06003105]
[1772116371958,10.69949824,2066.0,2064.6,1.05768204]
[1772116372253,7.6262476,2065.9,2064.7,1.05768204]
[1772116372453,7.8682776,2065.8,2064.7,1.05768204]
[1772116372642,7.78889222,2065.7,2064.7,1.05768204]
[1772116372848,7.6262476,2065.6,2064.7,1.05768204]
[1772116373454,0.00503693,2065.8,2064.7,1.05768204]
[1772116373649,0.00503693,2065.8,2064.4,0.24219]
[1772116373650,0.00503693,2065.8,2064.9,1.05564735]
[1772116373948,4.12768877,2066.4,2064.9,1.05564735]
[1772116374148,7.6245819,2066.3,2064.9,1.05564735]
[1772116374343,4.12768877,2066.4,2064.9,1.05564735]
[1772116374344,0.40498698,2066.0,2064.9,1.05564735]
[1772116374552,7.6245819,2065.9,2064.9,1.05564735]
[1772116374753,7.62948112,2065.9,2064.9,1.05564735]
[1772116374955,7.6245819,2065.8,2064.9,1.05564735]
[1772116375444,7.6245819,2065.8,2064.2,0.2422]
[1772116375445,7.78403247,2065.7,2064.6,1.05290726]
[1772116375648,4.12394881,2065.5,2064.6,1.05290726]
[1772116375851,7.6245819,2065.4,2064.6,1.05290726]
[1772116376052,3.96449824,2065.7,2064.6,1.05290726]
[1772116376349,11.8337771,2065.6,2064.6,1.05290726]
[1772116376549,0.14922139,2065.4,2064.6,1.05290726]
[1772116376754,7.77725488,2065.3,2064.1,1.05310309]
[1772116376954,7.62803349,2065.2,2064.1,1.05310309]
[1772116377153,7.62803349,2065.1,2064.1,1.05310309]
[1772116377348,7.62803349,2065.0,2064.1,1.05310309]
[1772116377554,3.99605903,2065.4,2064.1,1.05310309]
[1772116377754,0.24209,2065.2,2064.1,1.05310309]
[1772116378058,0.38380654,2065.0,2064.1,1.05310309]
[1772116378256,7.62818491,2064.9,2064.1,1.05310309]
[1772116378455,0.14147598,2064.7,2064.0,0.00519363]
[1772116378655,7.62818491,2064.6,2064.0,1.06061315]
[1772116378852,3.99605903,2064.8,2064.0,1.06061315]
[1772116379052,7.63070819,2064.7,2064.0,1.06061315]
[1772116379254,18.49138008,2064.6,2064.0,0.00519363]
[1772116379554,18.49138008,2064.6,2063.7,1.05541952]
[1772116379555,0.13341852,2064.4,2063.2,1.05701669]
[1772116379756,11.76018574,2064.3,2063.2,1.05701669]
[1772116380052,7.75926727,2064.2,2063.2,1.05701669]
[1772116380252,3.99605903,2064.8,2063.4,0.96970196]
[1772116380451,1.02824775,2064.8,2063.6,0.96990585]
[1772116380654,1.02824775,2064.7,2063.6,0.00344427]
[1772116380860,1.02824775,2064.5,2063.6,0.00344427]
[1772116381365,1.02824775,2064.5,2063.6,0.96855479]
[1772116381559,1.02824775,2064.5,2063.6,0.00344427]
[1772116381865,1.03397973,2064.8,2063.6,0.96855479]
[1772116382966,1.03397973,2064.8,2064.0,1.03913743]
[1772116382967,0.00573198,2064.8,2064.0,1.03913743]
[1772116384461,1.03397973,2064.8,2063.9,6.339]
[1772116384756,0.00573198,2064.8,2064.2,1.03913743]
[1772116384961,1.02824775,2065.3,2064.2,1.03913743]
[1772116385967,1.03231548,2065.3,2064.2,1.03913743]
[1772116386467,1.02824775,2065.1,2063.6,1.0425817]
[1772116386662,1.02824775,2065.0,2063.6,1.0425817]
[1772116386867,1.02824775,2064.8,2063.6,1.0425817]
[1772116387063,1.02824775,2064.7,2063.6,1.0425817]
[1772116387259,6.98539775,2064.7,2063.6,0.00344427]
[1772116387464,1.02824775,2064.0,2062.7,1.03913743]
[1772116387957,1.02824775,2064.0,2062.9,1.03913743]
[1772116388369,1.02824775,2064.3,2063.1,1.03913743]
[1772116388671,6.721,2064.5,2063.3,1.03913743]
[1772116388860,3.99605903,2065.0,2063.5,1.03913743]
[1772116389169,1.02824775,2064.8,2063.4,6.90249068]
[1772116389369,1.02824775,2064.8,2063.4,1.28144743]
[1772116389770,6.23602805,2065.1,2063.7,1.03913743]
[1772116389771,1.02824775,2065.1,2063.7,1.03913743]
[1772116389972,1.02824775,2065.1,2063.9,1.03913743]
[1772116390767,1.02824775,2064.9,2063.8,6.339]
[1772116390966,1.02824775,2064.9,2063.8,7.37813743]
[1772116391473,1.02824775,2065.1,2063.9,1.03913743]
[1772116391668,0.00406773,2065.3,2064.2,1.03913743]
[1772116391963,1.02824775,2065.7,2064.5,1.28131743]
[1772116392167,1.02824775,2065.7,2064.6,6.339]
[1772116392770,1.02824775,2065.7,2064.7,1.03913743]
[1772116392966,0.00555927,2065.7,2064.7,1.04349765]
[1772116393973,1.03380702,2065.7,2064.7,0.00436022]
[1772116394370,1.02824775,2065.3,2064.0,1.03913743]
[1772116394874,0.24207,2065.4,2063.9,6.34]
[1772116394875,1.02824775,2065.1,2063.9,6.34]
[1772116395370,1.02824775,2064.9,2063.9,6.34]
[1772116395575,1.02824775,2064.9,2063.9,6.34558394]
[1772116396075,1.02824775,2064.9,2063.9,0.00558394]
[1772116396969,1.02824775,2064.9,2063.9,1.04472137]
[1772116397371,1.02824775,2064.9,2063.9,0.00558394]
[1772116397575,1.02824775,2064.7,2063.9,0.00558394]
[1772116397971,1.02824775,2064.5,2063.0,1.03913743]
[1772116398169,1.02824775,2064.3,2063.1,1.03913743]
[1772116398970,1.02824775,2064.3,2063.1,1.04484227]
[1772116400372,1.02824775,2063.9,2063.1,0.00570484]
[1772116400570,1.03376229,2063.9,2063.1,0.00570484]
[1772116401279,1.02824775,2063.7,2062.3,1.03913743]
[1772116401475,1.02824775,2063.3,2062.0,1.03913743]
[1772116401675,1.02824775,2063.3,2061.8,6.339]
[1772116401874,1.02824775,2063.1,2061.8,6.339]
[1772116402280,0.24233,2063.2,2061.8,0.00615022]
[1772116402281,1.02824775,2062.9,2061.8,0.00615022]
[1772116402688,1.02824775,2062.9,2061.8,1.04528765]
[1772116403276,1.02824775,2062.7,2061.8,0.00615022]
[1772116403487,1.02824775,2062.5,2061.2,1.03913743]
[1772116403676,1.02824775,2062.5,2061.4,1.03913743]
[1772116404483,1.02824775,2062.5,2061.4,1.04357004]
[1772116404884,1.02824775,2062.5,2061.4,0.00443261]
[1772116405287,1.02824775,2062.3,2061.4,0.00443261]
[1772116405589,1.03228266,2062.3,2061.4,0.00443261]
[1772116407483,1.03228266,2062.3,2061.4,1.07689328]
[1772116407787,0.00403491,2062.3,2061.4,1.07689328]
[1772116408282,1.21727058,2062.3,2061.4,1.07689328]
[1772116408488,1.21727058,2062.3,2061.4,0.00443261]
[1772116408681,1.21727058,2062.3,2061.4,1.07334719]
[1772116408887,1.21323567,2062.6,2061.6,1.06891458]
[1772116409090,1.21323567,2062.6,2061.7,6.34]
[1772116409286,1.21323567,2062.6,2061.8,1.08344419]
[1772116409489,1.21323567,2063.3,2061.8,1.08344419]
[1772116409685,1.21323567,2063.6,2062.2,1.08344419]
[1772116409886,1.21323567,2063.6,2062.4,1.08344419]
[1772116410189,1.21827762,2063.6,2062.6,1.07972128]
[1772116410490,1.21827762,2063.6,2062.3,7.4200979]
[1772116410883,1.21827762,2063.6,2061.2,21.52942279]
[1772116410884,1.21323567,2063.4,2061.6,1.07608157]
[1772116411088,1.21323567,2063.4,2062.1,1.31854157]
[1772116411288,0.00504195,2063.6,2062.1,1.31854157]
[1772116411289,0.00504195,2063.6,2062.8,1.07343314]
[1772116411490,0.00504195,2063.6,2062.9,1.07343314]
[1772116411683,1.21323567,2064.0,2062.9,1.07929799]
[1772116412588,1.21323567,2064.0,2063.0,6.39843969]
[1772116412788,1.21811872,2064.0,2063.0,1.0698182]
[1772116412990,1.21811872,2064.0,2062.9,0.00586485]
[1772116413187,1.21811872,2064.0,2062.9,1.0719969]
[1772116413786,0.00488305,2064.0,2063.3,1.07114966]
[1772116413989,1.21323567,2064.9,2063.7,1.06221544]
[1772116414290,1.21323567,2064.9,2063.6,1.06221544]
[1772116414489,1.21323567,2064.9,2063.7,6.34]
[1772116414990,1.21942599,2064.9,2063.8,1.05889173]
[1772116415185,0.00619032,2064.9,2064.1,1.05889173]
[1772116415390,1.21323567,2065.7,2064.3,1.04482313]
[1772116415995,1.21323567,2066.0,2064.7,1.04074666]
[1772116416196,1.21323567,2066.0,2064.6,0.24217]
[1772116416197,1.21323567,2066.0,2064.9,1.04074666]
[1772116416394,1.21323567,2065.8,2064.6,0.00609737]
[1772116416694,1.21323567,2065.6,2064.6,0.00609737]
[1772116417486,1.21323567,2065.2,2063.4,1.28455619]
[1772116417691,1.21323567,2065.0,2063.7,7.38225619]
[1772116418197,0.24213,2064.9,2063.7,6.34]
[1772116418398,0.24215,2064.7,2063.7,6.34]
[1772116418699,1.21323567,2064.6,2063.7,0.00536635]
[1772116419398,1.21323567,2064.4,2063.7,0.00536635]
[1772116419698,1.21323567,2064.2,2062.9,1.055634]
[1772116420491,1.21323567,2064.2,2062.8,6.341]
[1772116420693,0.24225,2063.9,2062.8,6.34466897]
[1772116420893,1.21323567,2063.6,2062.8,0.00366897]
[1772116421092,1.21323567,2063.4,2062.2,6.34]
[1772116422096,1.21323567,2063.4,2062.3,1.04946026]
[1772116423503,1.21323567,2064.2,2062.5,1.0467289]
[1772116423704,1.21323567,2064.2,2062.9,1.0467289]
[1772116423894,0.00457499,2064.4,2063.1,1.0467289]
[1772116424094,1.21781066,2064.4,2063.1,1.0467289]
[1772116424399,1.21781066,2064.4,2063.2,5.40639203]
[1772116424602,1.21781066,2064.4,2062.8,1.04298479]
[1772116424904,1.21781066,2064.4,2063.1,6.34]
[1772116425397,1.21323567,2064.2,2062.8,6.34]
[1772116425599,0.24222,2064.1,2062.8,6.34]
[1772116425901,1.21323567,2064.0,2062.8,6.34]
[1772116426106,1.21323567,2064.0,2062.9,1.03292238]
[1772116426901,0.00457499,2064.4,2062.9,1.03292238]
[1772116426902,1.21323567,2064.3,2062.9,1.03292238]
[1772116427102,1.21323567,2064.3,2063.1,1.02916526]
[1772116427492,0.00457499,2064.4,2063.2,7.23227998]
[1772116427696,1.21781066,2064.4,2063.4,1.02859998]
[1772116427998,1.21781066,2064.4,2063.3,6.341]
[1772116428706,1.21781066,2064.4,2063.3,7.36584842]
[1772116429496,1.21781066,2064.4,2063.4,0.97778739]
[1772116429699,0.00457499,2064.4,2063.5,0.97778739]
[1772116430104,1.21323567,2064.7,2063.5,0.97778739]
[1772116430303,1.21323567,2065.1,2063.7,0.97361494]
[1772116430503,1.21323567,2065.1,2063.9,0.97409684]
[1772116431409,1.21701397,2065.1,2063.9,0.97784928]
[1772116431910,1.21701397,2065.1,2064.1,0.97039021]
[1772116432113,0.0037783,2065.1,2064.3,0.97039021]
[1772116433201,1.21701397,2065.1,2064.3,0.97039021]
[1772116433511,1.21701397,2065.1,2064.1,6.341]
[1772116434509,1.21323567,2064.9,2063.9,0.00375244]
[1772116434707,1.21323567,2064.7,2063.9,0.00375244]
[1772116435111,1.21323567,2064.5,2063.2,6.341]
[1772116435313,1.45542567,2064.4,2063.1,6.341]
[1772116436107,1.45542567,2064.4,2063.1,7.2749921]
[1772116436511,1.21323567,2064.4,2063.2,0.92449991]
[1772116437108,1.11156125,2064.7,2063.2,0.92449991]
[1772116437309,1.11156125,2064.7,2063.4,0.92587395]
[1772116437511,1.11156125,2064.7,2063.6,0.93397991]
[1772116439215,1.11156125,2065.0,2064.0,0.92450656]
[1772116439416,0.0037783,2065.1,2064.2,0.9161107]
[1772116439616,0.0037783,2065.1,2064.4,0.9161107]
[1772116439812,1.11156125,2065.3,2064.5,6.341]
[1772116440407,1.11156125,2065.3,2064.5,7.25270529]
[1772116440812,1.11156125,2065.3,2064.5,6.341]
[1772116441014,1.11770602,2065.3,2064.5,6.341]
[1772116441210,1.11156125,2064.9,2063.9,0.90693748]
[1772116441410,1.11156125,2065.2,2063.9,0.90693748]
[1772116441612,0.00614477,2065.3,2064.3,0.91001227]
[1772116441815,1.11156125,2065.8,2064.5,0.91001227]
[1772116442015,1.11156125,2065.8,2064.7,0.90498578]
[1772116442316,1.11156125,2065.6,2064.6,0.90560895]
[1772116442916,0.00344932,2065.6,2064.6,0.90998534]
[1772116443115,0.00344932,2065.6,2064.8,0.9010173]
[1772116443309,0.00344932,2065.6,2064.9,6.341]
[1772116443513,0.00344932,2065.6,2064.9,7.21002418]
[1772116443818,1.11501057,2065.6,2064.7,0.86902418]
[1772116444017,1.11501057,2065.6,2064.7,6.341]
[1772116444312,1.11156125,2065.4,2064.6,0.00437639]
[1772116444510,1.11501057,2065.6,2064.6,0.86907341]
[1772116444714,1.11501057,2065.6,2064.7,0.86469702]
[1772116445013,0.00344932,2065.6,2064.9,0.85967574]
[1772116445412,1.11156125,2066.3,2065.0,0.24212]
[1772116445610,1.11156125,2066.3,2065.3,0.86261289]
[1772116445818,1.11156125,2066.3,2065.5,0.86261289]
[1772116446312,1.11156125,2066.3,2065.4,6.341]
[1772116446313,1.11557643,2066.3,2065.4,6.341]
[1772116446509,1.11557643,2066.3,2065.4,7.19929411]
[1772116447114,1.11557643,2066.3,2065.4,6.341]
[1772116447610,1.11557643,2066.3,2065.4,7.22292881]
[1772116447817,1.11557643,2066.3,2065.4,6.341]
[1772116448316,1.11156125,2067.0,2065.9,0.87756316]
[1772116448517,1.11156125,2067.0,2066.1,0.87756316]
[1772116449219,1.11691142,2067.0,2066.2,6.341]
[1772116449421,1.35880142,2067.0,2066.1,0.00578292]
[1772116450314,7.30929142,2067.0,2066.1,0.00578292]
[1772116450520,1.11156125,2066.7,2065.4,6.341]
[1772116450720,1.11156125,2066.7,2065.1,0.86891522]
[1772116450721,1.11156125,2066.7,2065.5,6.341]
[1772116451123,1.11691142,2067.0,2065.6,0.86395249]
[1772116451322,1.11691142,2067.0,2065.7,0.86395249]
[1772116451717,0.00535017,2067.0,2065.9,5.9536]
[1772116451922,1.11156125,2067.3,2066.3,0.9056577]
[1772116452119,1.11156125,2067.3,2066.5,0.90110331]
[1772116452322,1.11156125,2067.8,2066.7,0.90110331]
[1772116452622,1.11156125,2067.8,2066.9,0.90159165]
[1772116452824,1.11156125,2068.2,2067.0,0.24188]
[1772116453124,1.11693212,2068.2,2067.1,0.90159165]
[1772116453320,1.05934363,2068.5,2067.3,0.89094049]
[1772116454028,1.05934363,2068.5,2067.3,6.341]
[1772116454228,1.30106363,2068.4,2067.3,6.341]
[1772116454527,1.30686292,2068.4,2067.3,6.341]
[1772116454918,1.30686292,2068.4,2067.1,0.00448693]
[1772116454919,1.05934363,2067.9,2067.1,0.00448693]
[1772116455122,1.05934363,2067.7,2066.6,6.341]
[1772116455525,1.05934363,2067.3,2066.2,6.341]
[1772116455726,1.05934363,2067.3,2065.7,0.901273]
[1772116456023,5.94877,2067.6,2065.7,0.901273]
[1772116456024,1.05934363,2067.6,2066.0,0.89633585]
[1772116456326,1.05934363,2067.6,2066.2,0.89683667]
[1772116456528,1.05934363,2067.6,2066.4,0.89683667]
[1772116456725,1.05934363,2067.6,2066.5,6.341]
[1772116456926,1.05934363,2067.4,2066.1,0.89683667]
[1772116457122,1.05934363,2067.4,2066.2,6.341]
[1772116457323,1.05934363,2067.4,2066.3,6.341]
[1772116458627,1.05934363,2068.0,2066.6,0.89261268]
[1772116458823,1.05934363,2068.0,2066.8,0.89261268]
[1772116459522,1.05934363,2068.0,2066.9,5.95109594]
[1772116460030,1.05934363,2068.0,2066.7,7.23277091]
[1772116460228,1.05934363,2068.0,2066.8,0.89177091]
[1772116460628,1.05934363,2067.8,2066.5,6.341]
[1772116460825,1.05934363,2067.8,2066.5,7.23324107]
[1772116461333,1.05934363,2067.8,2066.5,6.341]
[1772116461629,1.05934363,2068.2,2066.8,0.88684516]
[1772116461819,1.05934363,2068.2,2066.9,6.341]
[1772116462025,1.05934363,2068.2,2066.9,7.22295211]
[1772116463430,0.00579929,2068.4,2066.2,0.24198]
[1772116463431,1.05934363,2068.0,2066.3,0.89669912]
[1772116463731,1.05934363,2067.8,2066.4,6.341]
[1772116464429,1.05934363,2067.6,2066.4,6.341]
[1772116464624,1.05934363,2067.4,2066.0,0.89225274]
[1772116464824,1.05934363,2067.4,2065.7,0.24716337]
[1772116464825,1.05934363,2067.4,2066.2,0.89225274]
[1772116466036,1.08147368,2067.0,2066.0,0.8773381]
[1772116466333,1.08147368,2067.5,2066.2,0.8773381]
[1772116466532,1.08147368,2067.5,2066.4,0.87815378]
[1772116467430,1.08147368,2067.5,2066.5,6.34]
[1772116467935,1.08147368,2067.5,2066.5,7.21463634]
[1772116468135,4.2224617,2068.2,2066.6,0.87463634]
[1772116468436,1.08147368,2068.0,2066.6,0.87463634]
[1772116469229,1.08147368,2067.8,2066.6,0.87463634]
[1772116469428,1.08147368,2067.6,2066.5,6.34]
[1772116470132,1.08147368,2068.0,2066.6,5.19609513]
[1772116470436,1.08147368,2067.8,2066.7,0.85392405]
[1772116470840,1.08147368,2068.2,2067.1,0.85437701]
[1772116471033,0.00579929,2068.4,2067.3,0.84954015]
[1772116471233,1.08727297,2068.4,2067.3,0.85439064]
[1772116471629,0.00579929,2068.4,2067.5,0.85635565]
[1772116471836,0.00579929,2068.4,2067.7,0.85635565]
[1772116472136,1.08727297,2068.4,2067.4,0.85154015]
[1772116472342,0.00579929,2068.4,2067.7,0.85197724]
[1772116472634,1.08147368,2069.1,2067.8,0.85197724]
[1772116472835,1.08147368,2069.4,2068.4,0.85197724]
[1772116473035,1.08147368,2069.5,2068.5,6.339]
[1772116473231,1.08147368,2069.3,2068.0,0.84716975]
[1772116473435,0.2416,2069.4,2068.0,0.84716975]
[1772116473436,1.08147368,2069.1,2068.0,6.339]
[1772116473637,1.08534163,2069.1,2068.0,7.1827794]
[1772116474238,1.08534163,2069.1,2068.1,0.83937434]
[1772116475238,0.00386795,2069.1,2068.3,0.83497774]
[1772116475541,1.08147368,2069.4,2068.5,0.84404431]
[1772116475741,6.388,2069.9,2068.6,7.18204431]
[1772116475941,1.08147368,2069.7,2068.8,0.8392488]
[1772116476143,1.08147368,2070.0,2069.0,0.8392488]
[1772116476444,1.08716142,2070.0,2069.0,0.84394753]
[1772116477344,0.00568774,2070.0,2069.0,0.84394753]
[1772116477641,1.08147368,2070.6,2069.5,0.8444244]
[1772116477842,1.08147368,2070.6,2069.6,7.1814244]
[1772116478042,1.08147368,2070.6,2069.6,7.18226291]
[1772116478236,1.08147368,2070.6,2069.7,0.84526291]
[1772116478437,1.08754056,2070.6,2069.7,0.84526291]
[1772116478634,1.08754056,2070.6,2069.7,0.84565643]
[1772116478943,0.00606688,2070.6,2069.7,0.84565643]
[1772116479141,1.00429275,2071.2,2069.9,0.84127774]
[1772116479441,1.00429275,2071.5,2070.4,0.8611932]
[1772116479636,1.00429275,2071.5,2070.5,6.336]
[1772116479832,1.00429275,2071.5,2070.5,7.1971932]
[1772116480037,1.00429275,2072.2,2071.1,0.8564238]
[1772116480236,1.00429275,2073.1,2071.9,0.8564238]
[1772116480438,1.00429275,2073.0,2071.5,0.85677201]
[1772116480633,1.00429275,2072.8,2071.5,6.335]
[1772116480838,1.00429275,2072.6,2071.2,7.19177201]
[1772116481039,1.00429275,2072.9,2071.4,0.85242737]
[1772116481242,1.00919758,2072.9,2071.7,0.85242737]
[1772116481545,1.00919758,2072.9,2071.5,11.83954723]
[1772116481741,1.00919758,2072.9,2071.5,6.335]
[1772116482245,1.00429275,2072.3,2071.1,7.18941114]
[1772116482436,1.00429275,2072.3,2071.2,0.85072211]
[1772116482840,1.00919758,2072.9,2071.4,0.85072211]
[1772116483240,1.00919758,2072.9,2071.6,0.84598314]
[1772116483444,1.00919758,2072.9,2071.8,0.82676458]
[1772116483842,1.00919758,2072.9,2071.5,0.82676458]
[1772116484242,1.00919758,2072.9,2071.6,0.82202563]
[1772116485141,1.00919758,2072.9,2071.7,6.331]
[1772116485341,1.00919758,2072.9,2071.4,0.81768116]
[1772116485342,1.24550275,2072.8,2071.4,0.81768116]
[1772116485541,1.24550275,2072.8,2071.5,6.331]
[1772116485937,1.00429275,2072.3,2071.1,6.33601143]
[1772116486546,1.00429275,2071.9,2070.1,0.83021909]
[1772116486847,1.00429275,2071.9,2069.6,2.47748468]
[1772116486848,1.00429275,2071.5,2070.2,7.15921909]
[1772116487041,1.00429275,2071.5,2070.3,0.82551449]
[1772116487240,1.00429275,2071.5,2070.2,6.329]
[1772116487442,1.00429275,2071.3,2070.2,6.329]
[1772116487646,1.00429275,2071.1,2070.2,0.00441367]
[1772116487845,1.00429275,2070.9,2069.8,6.329]
[1772116488045,1.00429275,2070.9,2070.0,0.5]
[1772116488950,1.00429275,2070.5,2069.2,0.96458407]
[1772116489248,1.00429275,2070.5,2069.4,0.96458407]
[1772116489643,1.00429275,2070.5,2069.2,5.24024397]
[1772116489839,1.00429275,2070.5,2068.9,6.329]
[1772116489840,0.24149,2070.4,2068.9,7.31481288]
[1772116490045,1.00429275,2070.3,2068.9,7.31954225]
[1772116490238,1.00429275,2070.1,2068.9,0.00472937]
[1772116490444,1.00429275,2069.9,2068.9,0.00472937]
[1772116490842,1.00429275,2069.7,2068.9,0.00472937]
[1772116491042,1.00429275,2069.5,2067.9,0.98581288]
[1772116491245,1.00429275,2069.5,2068.1,0.98581288]
[1772116491448,1.00429275,2069.5,2068.1,6.53017885]
[1772116491747,1.00429275,2068.9,2067.5,0.98581288]
[1772116491950,1.0096975,2068.9,2067.5,0.9901545]
[1772116493948,0.00540475,2068.9,2067.8,1.22760288]
[1772116494148,1.0096975,2068.9,2067.9,6.33]
[1772116495952,0.00540475,2068.9,2068.0,1.02604796]
[1772116496147,1.06797262,2069.3,2068.0,1.02604796]
[1772116496353,6.354,2069.8,2068.0,1.02604796]
[1772116496354,1.06797262,2069.7,2068.2,1.02604796]
[1772116496551,1.06797262,2069.7,2068.5,0.24171]
[1772116496754,1.06797262,2070.0,2068.7,1.02604796]
[1772116496953,1.06797262,2070.0,2068.6,5.6048071]
[1772116497148,1.07334465,2070.0,2068.7,6.331]
[1772116497350,1.07334465,2070.0,2068.8,7.35704796]
[1772116497551,1.07334465,2070.0,2068.9,1.01491825]
[1772116497947,0.00537203,2070.0,2069.0,1.01066954]
[1772116498154,0.00537203,2070.0,2069.0,1.01530648]
[1772116498356,0.00537203,2070.0,2069.2,1.01087434]
[1772116498555,0.00537203,2070.0,2069.3,7.34287434]
[1772116499656,1.06797262,2070.6,2069.4,1.01270567]
[1772116499953,1.06797262,2070.6,2069.4,5.43290973]
[1772116500151,1.06797262,2070.6,2069.4,1.0080965]
[1772116500352,1.06797262,2070.9,2069.6,1.00830537]
[1772116500548,1.06797262,2071.4,2070.2,1.00830537]
[1772116500749,1.06797262,2071.7,2070.4,1.00830537]
[1772116501055,1.06797262,2072.3,2070.6,1.00407638]
[1772116501349,1.06797262,2072.3,2070.8,1.02604796]
[1772116501757,1.06797262,2072.1,2070.8,7.36078257]
[1772116501951,1.06797262,2072.1,2070.9,1.02604796]
[1772116502452,1.06797262,2072.1,2071.0,6.24449017]
[1772116502649,1.06797262,2072.1,2071.1,1.02604796]
[1772116502851,0.0059934,2072.3,2071.3,1.02604796]
[1772116503053,1.06797262,2072.7,2071.5,1.02604796]
[1772116503348,1.06797262,2073.0,2071.6,5.33485745]
[1772116503554,1.06797262,2073.0,2071.7,6.33]
[1772116503755,1.06797262,2072.9,2071.5,6.33]
[1772116503956,1.30918262,2072.8,2071.5,6.33]
[1772116504153,1.06797262,2072.5,2070.9,1.02604796]